fUST/lending_fUST_20250826
["ID","MTS","AMOUNT","RATE_DAILY","PERIOD"]
[381377890,1756169444762,-480.0,0.00041095,30]
[381377892,1756169444772,-480.0,0.00041095,30]
[381377894,1756169444782,-480.0,0.00041095,30]
[381377895,1756169444791,-962.12,0.00041095,30]
[381377897,1756169444801,-1529.94,0.00041095,30]
[381377898,1756169444810,-705.51,0.00041095,30]
[381377900,1756169444819,-480.0,0.00041095,30]
[381377902,1756169444829,-813.47,0.00041095,30]
[381377903,1756169444838,-1682.98,0.00041095,30]
[381377904,1756169444847,-480.0,0.00041095,30]
[381377905,1756169444856,-480.0,0.00041095,30]
[381377906,1756169444865,-480.0,0.00041095,30]
[381377907,1756169444875,-1372.3,0.00041095,30]
[381377908,1756169444884,-832.33,0.00041095,30]
[381377909,1756169444894,-480.0,0.00041095,30]
[381377910,1756169444903,-971.1,0.00041095,30]
[381377911,1756169444913,-1180.45,0.00041095,30]
[381377912,1756169444923,-480.0,0.00041095,30]
[381377913,1756169444933,-480.0,0.00041095,30]
[381377914,1756169444942,-520.93,0.00041095,30]
[381377915,1756169444951,-640.46,0.00041095,30]
[381377916,1756169444961,-480.0,0.00041095,5]
[381377917,1756169444970,-14013.06,0.00041095,30]
[381377918,1756169444979,-480.0,0.00041095,30]
[381377919,1756169444989,-480.0,0.00041095,30]
[381377920,1756169444999,-480.0,0.00041095,30]
[381377921,1756169445009,-1587.1,0.00041095,30]
[381377922,1756169445019,-480.0,0.00041095,30]
[381377923,1756169445028,-1167.46,0.00041095,30]
[381377924,1756169445037,-480.0,0.00041095,30]
[381377925,1756169445047,-480.0,0.00041095,30]
[381377926,1756169445057,-480.0,0.00041095,30]
[381377927,1756169445067,-480.0,0.00041095,30]
[381377928,1756169445077,-480.0,0.00041095,30]
[381377929,1756169445096,-480.0,0.00041095,30]
[381377930,1756169445106,-151.0,0.00041095,30]
[381377931,1756169445115,-3097.37,0.00041095,30]
[381377932,1756169445125,-151.0,0.00041095,30]
[381377933,1756169445135,-2698.97,0.00041095,30]
[381377934,1756169445145,-151.0,0.00041095,30]
[381377935,1756169445154,-211.83877,0.00041095,30]
[381377936,1756169445164,-480.0,0.00041095,30]
[381377937,1756169445173,-1063.85,0.00041095,30]
[381377938,1756169445182,-480.0,0.00041095,30]
[381377939,1756169445192,-639.66,0.00041095,30]
[381377940,1756169445201,-480.0,0.00041095,30]
[381377941,1756169445217,-480.0,0.00041095,30]
[381377942,1756169445232,-2132.7,0.00041095,30]
[381377943,1756169445241,-1980.78,0.00041095,30]
[381377944,1756169445250,-480.0,0.00041095,30]
[381377945,1756169445260,-480.0,0.00041095,30]
[381377946,1756169445269,-480.0,0.00041095,30]
[381377947,1756169445282,-480.0,0.00041095,30]
[381377948,1756169445291,-480.0,0.00041095,30]
[381377949,1756169445301,-480.0,0.00041095,30]
[381377950,1756169445310,-480.0,0.00041095,30]
[381377951,1756169445320,-1084.51,0.00041095,30]
[381377952,1756169445331,-1357.36,0.00041095,30]
[381377953,1756169445340,-480.0,0.00041095,30]
[381377954,1756169445349,-480.0,0.00041095,30]
[381377955,1756169445359,-1833.89,0.00041095,30]
[381377956,1756169445369,-480.0,0.00041095,30]
[381377957,1756169445378,-480.0,0.00041095,30]
[381377958,1756169445387,-480.0,0.00041095,30]
[381377959,1756169445396,-411.13383182,0.00041095,30]
[381377973,1756169446683,-5212.83330455,0.00039899,2]
[381377974,1756169446694,-151.0,0.00041,30]
[381377975,1756169446704,-772.59,0.00041085,3]
[381377976,1756169446714,-68.86616818,0.00041095,30]
[381377977,1756169446725,-480.0,0.00041095,30]
[381377978,1756169446735,-200.38109841,0.00041095,30]
[381377979,1756169446745,-480.0,0.00041095,30]
[381377980,1756169446755,-480.0,0.00041095,30]
[381377981,1756169446765,-1000.0,0.00041095,120]
[381377982,1756169446775,-1000.0,0.00041095,120]
[381377983,1756169446786,-463.661193,0.00041095,120]
[381377984,1756169446795,-480.0,0.00041095,30]
[381377985,1756169446805,-480.0,0.00041095,30]
[381377986,1756169446815,-1074.7,0.00041095,30]
[381377987,1756169446825,-480.0,0.00041095,30]
[381377988,1756169446836,-580.64,0.00041095,20]
[381377989,1756169446846,-480.0,0.00041095,30]
[381377990,1756169446857,-480.0,0.00041095,30]
[381377991,1756169446867,-480.0,0.00041095,30]
[381377992,1756169446877,-480.0,0.00041095,30]
[381377993,1756169446886,-480.0,0.00041095,30]
[381377994,1756169446896,-480.0,0.00041095,30]
[381377995,1756169446906,-480.0,0.00041095,30]
[381377996,1756169446917,-480.0,0.00041095,30]
[381377997,1756169446927,-1009.9,0.00041095,30]
[381377998,1756169446937,-151.0,0.00041095,30]
[381377999,1756169446946,-151.0,0.00041095,30]
[381378000,1756169446956,-151.0,0.00041095,30]
[381378001,1756169446966,-151.0,0.00041095,30]
[381378002,1756169446975,-204.3373911,0.00041095,20]
[381378003,1756169446985,-1580.01,0.00041095,30]
[381378004,1756169446995,-151.0,0.00041095,30]
[381378005,1756169447005,-480.0,0.00041095,30]
[381378006,1756169447015,-973.63,0.00041095,30]
[381378007,1756169447025,-480.0,0.00041095,30]
[381378008,1756169447034,-480.0,0.00041095,30]
[381378009,1756169447043,-480.0,0.00041095,30]
[381378010,1756169447053,-1786.0,0.00041095,30]
[381378011,1756169447063,-151.0,0.00041095,30]
[381378012,1756169447073,-559.57,0.00041095,30]
[381378013,1756169447083,-480.0,0.00041095,30]
[381378014,1756169447092,-480.0,0.00041095,30]
[381378015,1756169447102,-480.0,0.00041095,30]
[381378016,1756169447111,-2196.08,0.00041095,30]
[381378017,1756169447121,-480.0,0.00041095,30]
[381378018,1756169447131,-151.0,0.00041095,30]
[381378019,1756169447140,-151.0,0.00041095,30]
[381378020,1756169447150,-1294.63,0.00041095,30]
[381378021,1756169447159,-171.027442,0.00041095,30]
[381378022,1756169447170,-744.64,0.00041095,30]
[381378023,1756169447180,-929.22,0.00041095,30]
[381378024,1756169447189,-480.0,0.00041095,30]
[381378025,1756169447199,-1619.92,0.00041095,30]
[381378026,1756169447209,-480.0,0.00041095,30]
[381378027,1756169447219,-480.0,0.00041095,30]
[381378028,1756169447229,-480.0,0.00041095,30]
[381378029,1756169447238,-480.0,0.00041095,30]
[381378030,1756169447248,-519.97,0.00041095,30]
[381378031,1756169447258,-480.0,0.00041095,30]
[381378032,1756169447267,-3199.19,0.00041095,30]
[381378033,1756169447278,-480.0,0.00041095,30]
[381378034,1756169447289,-5593.68,0.00041095,30]
[381378035,1756169447299,-522.13,0.00041095,30]
[381378036,1756169447309,-1373.72,0.00041095,30]
[381378037,1756169447319,-565.67,0.00041095,30]
[381378038,1756169447329,-480.0,0.00041095,30]
[381378039,1756169447339,-480.0,0.00041095,30]
[381378040,1756169447348,-594.07069676,0.00041095,30]
[381378041,1756169447360,-897.71,0.00041095,30]
[381378042,1756169447369,-480.0,0.00041095,30]
[381378043,1756169447379,-708.94,0.00041095,30]
[381378044,1756169447389,-1493.44,0.00041095,30]
[381378045,1756169447399,-500.0,0.00041095,120]
[381378046,1756169447409,-480.0,0.00041095,30]
[381378047,1756169447620,-480.0,0.00041095,30]
[381378048,1756169447630,-1600.17,0.00041095,30]
[381378049,1756169447639,-1124.45,0.00041095,30]
[381378050,1756169447648,-739.54,0.00041095,30]
[381378051,1756169447657,-2368.23,0.00041095,30]
[381378052,1756169447667,-559.66,0.00041095,30]
[381378053,1756169447677,-878.83,0.00041095,30]
[381378054,1756169447686,-480.0,0.00041095,30]
[381378055,1756169447695,-1160.47,0.00041095,30]
[381378056,1756169447704,-480.0,0.00041095,30]
[381378057,1756169447714,-235.75,0.00041095,30]
[381378058,1756169447723,-950.98,0.00041095,30]
[381378059,1756169447732,-1972.32,0.00041095,30]
[381378060,1756169447742,-726.55,0.00041095,30]
[381378061,1756169447752,-480.0,0.00041095,30]
[381378062,1756169447761,-660.54,0.00041095,30]
[381378063,1756169447770,-593.02,0.00041095,30]
[381378064,1756169447779,-15279.15,0.00041095,30]
[381378065,1756169447789,-299.920248,0.00041095,30]
[381378066,1756169447798,-480.0,0.00041095,30]
[381378067,1756169447807,-986.85,0.00041095,30]
[381378068,1756169447816,-371.33108167,0.00041095,30]
[381378069,1756169447826,-480.0,0.00041095,30]
[381378070,1756169447835,-480.0,0.00041095,30]
[381378071,1756169447844,-480.0,0.00041095,30]
[381378072,1756169447855,-2246.11,0.00041095,30]
[381378073,1756169447865,-782.8,0.00041095,30]
[381378074,1756169447874,-2661.61,0.00041095,30]
[381378075,1756169447883,-816.17,0.00041095,30]
[381378076,1756169447893,-480.0,0.00041095,30]
[381378077,1756169447903,-1032.16,0.00041095,30]
[381378078,1756169447912,-696.85,0.00041095,30]
[381378079,1756169447925,-1094.07,0.00041095,30]
[381378080,1756169447935,-163.355691,0.00041095,30]
[381378081,1756169447943,-163.355691,0.00041095,30]
[381378082,1756169447953,-163.355691,0.00041095,30]
[381378083,1756169447962,-163.355691,0.00041095,30]
[381378084,1756169447971,-729.37,0.00041095,30]
[381378085,1756169447980,-2121.28,0.00041095,30]
[381378086,1756169447990,-163.355691,0.00041095,30]
[381378087,1756169447999,-163.355691,0.00041095,30]
[381378088,1756169448008,-163.355691,0.00041095,30]
[381378089,1756169448017,-1347.86,0.00041095,30]
[381378090,1756169448027,-1085.19,0.00041095,30]
[381378091,1756169448036,-163.355691,0.00041095,30]
[381378092,1756169448046,-163.355691,0.00041095,30]
[381378093,1756169448057,-480.0,0.00041095,30]
[381378094,1756169448066,-163.355691,0.00041095,30]
[381378095,1756169448076,-163.355691,0.00041095,30]
[381378096,1756169448086,-163.355691,0.00041095,30]
[381378097,1756169448095,-480.0,0.00041095,30]
[381378098,1756169448105,-408.34308429,0.00041095,30]
[381378099,1756169448120,-71.65691571,0.00041095,30]
[381378100,1756169448129,-163.355691,0.00041095,30]
[381378101,1756169448139,-163.355691,0.00041095,30]
[381378102,1756169448148,-163.355691,0.00041095,30]
[381378103,1756169448158,-689.33713873,0.00041095,30]
[381378104,1756169448176,-253.97286127,0.00041095,30]
[381378105,1756169448185,-163.355698,0.00041095,30]
[381378106,1756169448195,-480.0,0.00041095,30]
[381378107,1756169448204,-9677.79,0.00041095,30]
[381378108,1756169448213,-480.0,0.00041095,30]
[381378109,1756169448223,-427.38144073,0.00041095,30]
[381378110,1756169448335,-409.0,0.00039345,2]
[381378111,1756169448346,-52.61855927,0.00041095,30]
[381378112,1756169448361,-480.0,0.00041095,30]
[381378113,1756169448372,-2819.8,0.00041095,30]
[381378114,1756169448382,-480.0,0.00041095,30]
[381378115,1756169448392,-151.0,0.00041095,30]
[381378116,1756169448401,-480.0,0.00041095,30]
[381378117,1756169448411,-776.83,0.00041095,30]
[381378118,1756169448423,-480.0,0.00041095,30]
[381378119,1756169448432,-1670.44,0.00041095,30]
[381378120,1756169448441,-381.68644074,0.00041095,30]
[381378121,1756169448453,-98.31355926,0.00041095,30]
[381378122,1756169448463,-550.01141244,0.00041095,30]
[381378123,1756169448474,-574.59858756,0.00041095,30]
[381378124,1756169448484,-666.02,0.00041095,30]
[381378126,1756169448494,-480.0,0.00041095,30]
[381378127,1756169448503,-480.0,0.00041095,30]
[381378128,1756169448512,-497.0,0.00041095,30]
[381378129,1756169448521,-459.79566534,0.00041095,30]
[381378130,1756169448533,-20.20433466,0.00041095,30]
[381378131,1756169448542,-745.67,0.00041095,30]
[381378132,1756169448551,-480.0,0.00041095,30]
[381378133,1756169448560,-480.0,0.00041095,30]
[381378134,1756169448570,-577.99,0.00041095,30]
[381378135,1756169448580,-541.08,0.00041095,30]
[381378136,1756169448589,-1028.39,0.00041095,30]
[381378137,1756169448599,-151.0,0.00041095,30]
[381378138,1756169448608,-1556.97,0.00041095,30]
[381378139,1756169448617,-480.0,0.00041095,30]
[381378140,1756169448627,-416.62295633,0.00041095,30]
[381378141,1756169448637,-544.51,0.00041095,30]
[381378142,1756169448647,-480.0,0.00041095,30]
[381378143,1756169448657,-515.42373222,0.00041095,30]
[381378144,1756169448669,-220.28066766,0.00041095,30]
[381378145,1756169448682,-337.89933234,0.00041095,30]
[381378146,1756169448692,-795.33,0.00041095,30]
[381378147,1756169448701,-480.0,0.00041095,30]
[381378148,1756169448711,-4016.14,0.00041095,30]
[381378149,1756169448721,-1656.3,0.00041095,30]
[381378150,1756169448730,-480.0,0.00041095,30]
[381378151,1756169448740,-480.0,0.00041095,30]
[381378152,1756169448750,-244.445241,0.00041095,30]
[381378153,1756169448759,-1016.79,0.00041095,30]
[381378154,1756169448769,-316.5371905,0.00041095,30]
[381378155,1756169448778,-2693.66543289,0.00041095,30]
[381378156,1756169448790,-421.00456711,0.00041095,30]
[381378157,1756169448800,-603.78,0.00041095,30]
[381378158,1756169448809,-244.445241,0.00041095,30]
[381378159,1756169448819,-1495.78,0.00041095,30]
[381378160,1756169448828,-480.0,0.00041095,30]
[381378161,1756169448838,-244.445241,0.00041095,30]
[381378162,1756169448848,-244.445241,0.00041095,30]
[381378163,1756169448858,-1470.88,0.00041095,30]
[381378164,1756169448867,-244.445241,0.00041095,30]
[381378165,1756169448877,-244.445241,0.00041095,30]
[381378166,1756169448887,-480.0,0.00041095,30]
[381378167,1756169448896,-244.445241,0.00041095,30]
[381378168,1756169448906,-244.445241,0.00041095,30]
[381378169,1756169448918,-1314.28,0.00041095,30]
[381378170,1756169448932,-244.445241,0.00041095,30]
[381378171,1756169448942,-480.0,0.00041095,30]
[381378172,1756169448952,-244.445241,0.00041095,30]
[381378173,1756169448961,-244.445241,0.00041095,30]
[381378174,1756169448970,-244.445241,0.00041095,30]
[381378175,1756169448980,-244.445241,0.00041095,30]
[381378177,1756169448989,-244.445241,0.00041095,30]
[381378178,1756169448999,-480.0,0.00041095,30]
[381378179,1756169449009,-244.445241,0.00041095,30]
[381378180,1756169449018,-244.445245,0.00041095,30]
[381378181,1756169449028,-480.0,0.00041095,30]
[381378182,1756169449037,-480.0,0.00041095,30]
[381378183,1756169449046,-3058.2,0.00041095,30]
[381378184,1756169449059,-717.34,0.00041095,30]
[381378185,1756169449069,-480.0,0.00041095,30]
[381378186,1756169449080,-991.0,0.00041095,30]
[381378187,1756169449090,-480.0,0.00041095,30]
[381378188,1756169449101,-581.23,0.00041095,30]
[381378189,1756169449111,-339.82681389,0.00041095,30]
[381378190,1756169449124,-626.98318611,0.00041095,30]
[381378191,1756169449134,-1000.57,0.00041095,30]
[381378192,1756169449144,-1075.15,0.00041095,30]
[381378193,1756169449155,-1683.71,0.00041095,30]
[381378194,1756169449164,-480.0,0.00041095,30]
[381378195,1756169449179,-3262.05,0.00041095,30]
[381378196,1756169449189,-964.57,0.00041095,30]
[381378197,1756169449199,-480.0,0.00041095,30]
[381378198,1756169449209,-480.0,0.00041095,30]
[381378199,1756169449218,-480.0,0.00041095,30]
[381378200,1756169449228,-3829.69691389,0.00041095,30]
[381378209,1756169477950,197.65905173,0.00027223,2]
[381378210,1756169482635,197.65905173,0.00027223,2]
[381378211,1756169650600,417.15472785,0.000281,7]
[381378212,1756169716385,528.49347462,0.000281,7]
[381378215,1756170063382,151.0,0.00027223,2]
[381378216,1756170065779,151.0,0.00027223,2]
[381378222,1756170364200,151.0,0.00027223,2]
[381378223,1756170426244,-277.95489054,0.0003179,2]
[381378224,1756170428130,-376.34124865,0.0003179,2]
[381378225,1756170502336,320.0,0.000253,2]
[381378226,1756170544803,1506.21,0.000281,2]
[381378241,1756170631788,-345.70386081,0.0003179,2]
[381378242,1756170631798,-405.41000015,0.0003179,2]
[381378243,1756170631808,-959.22669722,0.00031876,50]
[381378244,1756170631898,-1602.77330278,0.00031876,50]
[381378245,1756170631908,-340.0,0.00035259,3]
[381378246,1756170631917,-221.7136535,0.00036665,120]
[381378247,1756170631934,-383.6040709,0.00037198,2]
[381378248,1756170631943,-259.05863926,0.00037523,3]
[381378701,1756170637657,-40.94136074,0.00037523,3]
[381378703,1756170637667,-216.0,0.00037523,2]
[381378705,1756170637676,-33.81863924,0.00037523,3]
[381378715,1756170637766,-366.18136076,0.00037523,3]
[381378717,1756170637775,-344.0,0.00037644,7]
[381378719,1756170637784,-343.0,0.00037706,120]
[381378721,1756170637793,-342.0,0.00037711,120]
[381378723,1756170637803,-343.0,0.00037762,7]
[381378725,1756170637812,-342.0,0.00037779,2]
[381378727,1756170637821,-342.0,0.00037858,120]
[381378728,1756170637830,-342.0,0.0003798,7]
[381378731,1756170637840,-973.0,0.00038133,2]
[381378732,1756170637848,-2155.0,0.00038133,2]
[381378734,1756170637858,-637.0,0.00038133,2]
[381378736,1756170637867,-132.69218688,0.00038355,7]
[381378739,1756170637879,-367.30781312,0.00038355,7]
[381378741,1756170637888,-342.0,0.00038427,7]
[381378743,1756170637897,-98.57977777,0.00038501,2]
[381378745,1756170637909,-277.72810562,0.00038501,2]
[381378747,1756170637918,-342.0,0.00038541,2]
[381378749,1756170637931,-342.0,0.00038552,2]
[381378751,1756170637940,-343.0,0.00039411,2]
[381378753,1756170637949,-342.0,0.00039469,2]
[381378755,1756170637958,-344.0,0.00039554,2]
[381378757,1756170637968,-484.25721039,0.0003968,2]
[381378758,1756170637977,-342.0,0.00039692,7]
[381378760,1756170637986,-160.0,0.00039698,2]
[381378762,1756170637995,-160.0,0.00039721,2]
[381378764,1756170638004,-529.29072822,0.00039721,2]
[381378766,1756170638014,-844.86965257,0.00039726,2]
[381378768,1756170638025,-342.0,0.00039769,7]
[381378770,1756170638037,-12.47637193,0.0003977,10]
[381378773,1756170638048,-1272.81362807,0.0003977,10]
[381378774,1756170638057,-1071.08,0.0003977,10]
[381378776,1756170638066,-160.0,0.0003977,3]
[381378778,1756170638075,-376.30788339,0.0003977,3]
[381378780,1756170638085,-748.08364809,0.0003978,120]
[381378783,1756170638097,-465.73635191,0.0003978,120]
[381378785,1756170638107,-76362.0497615,0.0003978,3]
[381378787,1756170638117,-46650.8254364,0.0003978,3]
[381378789,1756170638126,-500.0,0.00039789,31]
[381378791,1756170638135,-384.71307132,0.00039789,31]
[381378793,1756170638145,-500.0,0.00039789,31]
[381378795,1756170638154,-500.0,0.00039789,31]
[381378797,1756170638164,-500.0,0.00039789,31]
[381378799,1756170638174,-507.49096181,0.00039789,31]
[381378800,1756170638188,-500.0,0.00039789,31]
[381378801,1756170638198,-500.0,0.00039789,31]
[381378802,1756170638209,-500.0,0.00039789,31]
[381378803,1756170638219,-500.0,0.00039789,31]
[381378804,1756170638229,-370000.0,0.0003979,2]
[381378805,1756170638238,-1665.18,0.000398,7]
[381378806,1756170638248,-342.0,0.0003981,2]
[381378807,1756170638258,-500.0,0.00039999,7]
[381378808,1756170638268,-342.0,0.00040281,7]
[381378809,1756170638277,-342.0,0.00040335,2]
[381378810,1756170638286,-500.0,0.0004036,30]
[381378811,1756170638295,-500.0,0.0004036,30]
[381378813,1756170638305,-484.25721039,0.00040416,28]
[381378815,1756170638314,-342.0,0.00040478,2]
[381378816,1756170638324,-153.0,0.00040548,30]
[381378818,1756170638333,-321.8774329,0.00040548,30]
[381378820,1756170638342,-354.5962117,0.00040548,30]
[381378823,1756170638352,-151.698713,0.0004072,2]
[381378825,1756170638363,-342.0,0.00040811,2]
[381378827,1756170638372,-9545.25622019,0.0004089,3]
[381378829,1756170638382,-5831.35317955,0.0004089,3]
[381378831,1756170638391,-7466.71,0.000409,30]
[381378833,1756170638400,-160.0,0.000409,30]
[381378835,1756170638410,-342.0,0.00040969,2]
[381378837,1756170638420,-38181.0248808,0.0004099,3]
[381378839,1756170638432,-23325.4127182,0.0004099,3]
[381378841,1756170638441,-160.0,0.00040992,2]
[381378843,1756170638450,-173.45921025,0.00040995,10]
[381378845,1756170638459,-140680.20975369,0.00041,120]
[381378847,1756170638470,-35720.55024631,0.00041,120]
[381378849,1756170638481,-7204.01,0.00041,14]
[381378851,1756170638491,-10000.0,0.00041,120]
[381378853,1756170638501,-866.0,0.00041,120]
[381378855,1756170638510,-1000.0,0.00041,120]
[381378857,1756170638519,-160.0,0.00041,120]
[381378859,1756170638528,-151.0,0.00041,30]
[381378861,1756170638538,-160.0,0.00041016,2]
[381378863,1756170638547,-417.15472785,0.00041016,2]
[381378865,1756170638557,-232.4766599,0.00041016,2]
[381378867,1756170638566,-9545.25622019,0.00041063,3]
[381378869,1756170638575,-5831.35317955,0.00041063,3]
[381378871,1756170638584,-500.0,0.00041073,5]
[381378874,1756170638598,-587.34314269,0.00041073,5]
[381378876,1756170638611,-500.0,0.00041073,5]
[381378878,1756170638620,-488.42,0.00041073,5]
[381378880,1756170638630,-500.0,0.00041073,5]
[381378882,1756170638639,-563.45571697,0.00041073,5]
[381378884,1756170638649,-500.0,0.00041073,5]
[381378886,1756170638658,-500.0,0.00041073,5]
[381378888,1756170638667,-42484.05087757,0.00041085,3]
[381379107,1756170640802,-160.0,0.00039721,2]
[381379110,1756170640812,-844.86965257,0.00039721,2]
[381379112,1756170640821,-1163.53,0.0003977,10]
[381379114,1756170640832,-14787.48644353,0.00041085,3]
[381379116,1756170640841,-34988.1190773,0.00041085,3]
[381379118,1756170640851,-250.0,0.00041094,30]
[381379120,1756170640860,-250.0,0.00041094,30]
[381379122,1756170640869,-250.0,0.00041094,30]
[381379124,1756170640878,-250.0,0.00041094,30]
[381379126,1756170640888,-250.0,0.00041094,30]
[381379128,1756170640897,-250.0,0.00041094,30]
[381379130,1756170640906,-250.0,0.00041094,30]
[381379132,1756170640915,-250.0,0.00041094,30]
[381379134,1756170640925,-250.0,0.00041094,30]
[381379136,1756170640937,-250.0,0.00041094,30]
[381379138,1756170640947,-250.0,0.00041094,30]
[381379140,1756170640957,-250.0,0.00041094,30]
[381379142,1756170640966,-250.0,0.00041094,30]
[381379144,1756170640976,-250.0,0.00041094,30]
[381379146,1756170640985,-250.0,0.00041094,30]
[381379147,1756170640995,-371.06373315,0.00041094,30]
[381379150,1756170641005,-2228.58160188,0.00041095,61]
[381379152,1756170641014,-480.0,0.00041095,30]
[381379154,1756170641024,-437.59294382,0.00041095,30]
[381379156,1756170641035,-480.0,0.00041095,30]
[381379158,1756170641044,-335.87980088,0.00041095,30]
[381379160,1756170641054,-480.0,0.00041095,30]
[381379162,1756170641063,-426.2056276,0.00041095,2]
[381379164,1756170641072,-480.0,0.00041095,30]
[381379166,1756170641082,-401.29242061,0.00041095,30]
[381379168,1756170641092,-480.0,0.00041095,30]
[381379170,1756170641102,-480.0,0.00041095,30]
[381379172,1756170641112,-1045.87,0.00041095,30]
[381379174,1756170641122,-480.0,0.00041095,30]
[381379176,1756170641131,-1000.0,0.00041095,30]
[381379178,1756170641141,-401.62746917,0.00041095,30]
[381379180,1756170641150,-480.0,0.00041095,30]
[381379182,1756170641160,-940.37,0.00041095,30]
[381379184,1756170641169,-480.0,0.00041095,30]
[381379186,1756170641182,-480.0,0.00041095,30]
[381379188,1756170641192,-480.0,0.00041095,30]
[381379190,1756170641201,-480.0,0.00041095,30]
[381379192,1756170641211,-480.0,0.00041095,30]
[381379194,1756170641221,-547.76,0.00041095,30]
[381379196,1756170641230,-480.0,0.00041095,30]
[381379198,1756170641240,-480.0,0.00041095,30]
[381379200,1756170641250,-877.35,0.00041095,30]
[381379202,1756170641259,-498.83,0.00041095,30]
[381379204,1756170641269,-480.0,0.00041095,30]
[381379206,1756170641278,-480.0,0.00041095,30]
[381379208,1756170641288,-480.0,0.00041095,30]
[381379210,1756170641298,-480.0,0.00041095,30]
[381379212,1756170641307,-678.31,0.00041095,30]
[381379214,1756170641316,-720.87,0.00041095,30]
[381379216,1756170641326,-480.0,0.00041095,30]
[381379218,1756170641335,-480.0,0.00041095,30]
[381379220,1756170641344,-480.0,0.00041095,30]
[381379222,1756170641354,-480.0,0.00041095,30]
[381379224,1756170641363,-1002.75,0.00041095,30]
[381379226,1756170641374,-480.0,0.00041095,30]
[381379228,1756170641383,-480.0,0.00041095,30]
[381379230,1756170641394,-493.51,0.00041095,30]
[381379232,1756170641403,-480.0,0.00041095,30]
[381379234,1756170641412,-480.0,0.00041095,30]
[381379236,1756170641422,-284.07123164,0.00041095,30]
[381379239,1756170641435,-480.0,0.00041095,30]
[381379241,1756170641447,-480.0,0.00041095,30]
[381379243,1756170641456,-1044.69,0.00041095,30]
[381379245,1756170641467,-480.0,0.00041095,30]
[381379247,1756170641476,-480.0,0.00041095,30]
[381379249,1756170641485,-480.0,0.00041095,30]
[381379251,1756170641494,-480.0,0.00041095,30]
[381379253,1756170641504,-480.0,0.00041095,30]
[381379255,1756170641513,-480.0,0.00041095,30]
[381379257,1756170641522,-480.0,0.00041095,30]
[381379259,1756170641531,-734.7,0.00041095,30]
[381379261,1756170641541,-480.0,0.00041095,30]
[381379263,1756170641551,-480.0,0.00041095,30]
[381379265,1756170641560,-480.0,0.00041095,30]
[381379267,1756170641569,-480.0,0.00041095,30]
[381379269,1756170641579,-480.0,0.00041095,30]
[381379271,1756170641588,-480.0,0.00041095,30]
[381379273,1756170641599,-843.77,0.00041095,30]
[381379275,1756170641610,-480.0,0.00041095,30]
[381379277,1756170641620,-907.86,0.00041095,30]
[381379279,1756170641629,-625.35634093,0.00041095,30]
[381379281,1756170641638,-480.0,0.00041095,30]
[381379283,1756170641648,-480.0,0.00041095,30]
[381379285,1756170641658,-480.0,0.00041095,30]
[381379287,1756170641667,-544.31,0.00041095,7]
[381379289,1756170641676,-480.0,0.00041095,30]
[381379290,1756170641691,-2194.76,0.00041095,30]
[381379292,1756170641700,-480.0,0.00041095,30]
[381379294,1756170641709,-480.0,0.00041095,30]